bitfinex-derivatives/quotes_ETHF0:USTF0_20240904
["timestamp","ask_amount","ask_price","bid_price","bid_amount"]
[1725456546833,0.0062573,2397.9,2397.8,8.19746]
[1725456548446,0.0062573,2397.9,2397.7,4.02707]
[1725456549144,0.4233173,2397.9,2397.6,3.62489]
[1725456549742,0.0062573,2397.9,2397.6,3.2078]
[1725456549936,0.0062573,2397.9,2397.7,0.41708]
[1725456550142,0.0062573,2397.9,2397.6,7.23489]
[1725456550445,0.0062573,2397.9,2397.5,0.41711]
[1725456550446,0.41707,2397.8,2397.5,0.41711]
[1725456550947,3.5896573,2397.9,2397.7,0.41708]
[1725456551143,3.5896573,2397.9,2397.8,0.41706]
[1725456551340,0.0062573,2397.9,2397.8,0.41706]
[1725456552043,0.0062573,2397.9,2397.6,3.61]
[1725456552445,0.0062573,2397.9,2397.7,0.41708]
[1725456553043,0.0062573,2397.9,2397.8,0.41706]
[1725456553538,0.0062573,2397.9,2397.6,3.61]
[1725456553739,0.0062573,2397.9,2397.8,0.41706]
[1725456554249,0.0062573,2397.9,2397.7,0.41707]
[1725456555247,0.0062573,2397.9,2397.6,3.61]
[1725456555449,0.0062573,2397.9,2397.7,0.41707]
[1725456556046,0.4233073,2397.9,2397.6,0.41709]
[1725456556340,0.41708,2397.7,2397.4,3.6162573]
[1725456556540,0.4171,2397.6,2397.4,0.4233873]
[1725456556743,0.41712,2397.5,2397.4,0.0062573]
[1725456556951,0.41711,2397.6,2397.4,0.0062573]
[1725456557143,0.41711,2397.6,2397.4,0.4233873]
[1725456557357,0.41712,2397.5,2397.4,0.0062573]
[1725456557738,4.58832,2397.5,2397.4,0.0062573]
[1725456558554,0.41716,2397.3,2397.1,0.41718]
[1725456558754,0.3768,2397.2,2397.1,0.41718]
[1725456560753,0.78604,2397.4,2396.9,0.0062573]
[1725456560754,0.3689,2397.4,2397.0,1.04302]
[1725456560948,0.392,2397.6,2397.5,0.41712]
[1725456561653,0.392,2397.6,2397.2,4.65293]
[1725456561654,0.392,2397.6,2397.4,0.41712]
[1725456561861,0.41714,2397.4,2397.1,0.3628]
[1725456562058,0.41714,2397.4,2397.2,0.41716]
[1725456562357,1.0428,2397.5,2397.1,0.41718]
[1725456562549,0.41714,2397.4,2397.2,0.41717]
[1725456563258,0.41712,2397.5,2397.3,0.41715]
[1725456563448,0.8091,2397.6,2397.4,0.41713]
[1725456563654,0.392,2397.6,2397.3,0.41715]
[1725456564050,0.41712,2397.5,2397.3,0.41715]
[1725456564948,0.80911,2397.6,2397.4,0.41713]
[1725456565349,4.98031,2397.6,2397.4,0.41713]
[1725456565545,0.392,2397.6,2397.5,0.41712]
[1725456565950,0.8091,2397.6,2397.4,0.41712]
[1725456566451,0.392,2397.6,2397.5,0.41712]
[1725456566849,0.8091,2397.6,2397.5,0.41712]
[1725456567249,0.8091,2397.6,2397.4,0.41712]
[1725456567650,0.41712,2397.5,2397.3,0.41714]
[1725456567857,0.41712,2397.5,2397.4,0.41713]
[1725456568057,0.41713,2397.4,2397.3,0.41714]
[1725456568260,0.41712,2397.5,2397.4,0.41713]
[1725456568759,4.58832,2397.5,2397.4,0.41713]
[1725456568950,4.58832,2397.5,2397.3,0.41714]
[1725456569155,0.392,2397.6,2397.3,0.41714]
[1725456569351,0.41714,2397.4,2397.3,0.41715]
[1725456569552,0.41715,2397.3,2397.2,0.41716]
[1725456569855,0.41715,2397.3,2396.9,0.4234773]
[1725456569856,0.4172,2397.0,2396.9,0.4234773]
[1725456570055,4.66802,2397.0,2396.9,0.0062573]
[1725456570247,8.84002,2397.0,2396.9,0.0062573]
[1725456570450,4.5892,2397.0,2396.9,0.0062573]
[1725456571656,0.8022,2397.1,2397.0,0.4172]
[1725456572159,0.385,2397.1,2397.0,1.46022]
[1725456572462,0.385,2397.1,2397.0,0.4172]
[1725456572657,0.385,2397.1,2396.9,0.4234673]
[1725456572658,0.4172,2397.0,2396.9,0.4234673]
[1725456573062,0.385,2397.1,2396.9,0.4234673]
[1725456573063,0.8022,2397.1,2397.0,0.4172]
[1725456574755,0.385,2397.1,2397.0,0.4172]
[1725456574957,0.80219,2397.1,2397.0,0.4172]
[1725456576068,0.4172,2397.0,2396.9,0.4234673]
[1725456576363,3.625,2397.0,2396.9,0.4234673]
[1725456576567,4.66802,2397.0,2396.9,0.0062573]
[1725456577559,9.88304,2397.0,2396.9,0.0062573]
[1725456578153,15.88304,2397.0,2396.9,0.0062573]
[1725456578965,9.88304,2397.0,2396.9,0.0062573]
[1725456580662,8.84002,2397.0,2396.9,0.0062573]
[1725456580972,3.2078,2397.0,2396.9,0.0062573]
[1725456581154,3.2078,2397.0,2396.9,0.4234773]
[1725456581356,3.2078,2397.0,2396.9,1.4665373]
[1725456582060,3.2078,2397.0,2396.9,9.2485373]
[1725456583070,3.46297965,2397.5,2397.4,0.41713]
[1725456583071,0.3771,2397.5,2397.4,0.41713]
[1725456583370,3.40584965,2397.6,2397.4,0.41712]
[1725456583871,0.7371,2397.6,2397.4,0.41712]
[1725456584357,0.7371,2397.6,2397.5,0.41712]
[1725456584765,4.9083,2397.6,2397.5,0.41712]
[1725456585561,7.57704965,2397.6,2397.5,0.41712]
[1725456585964,5.3254,2397.6,2397.4,0.41712]
[1725456586168,0.7371,2397.6,2397.5,0.41712]
[1725456586562,4.9083,2397.6,2397.5,0.41712]
[1725456587963,2.66874965,2397.7,2397.5,0.41712]
[1725456588164,3.5849,2397.8,2397.7,0.41708]
[1725456588373,0.0062573,2397.9,2397.8,0.41706]
[1725456588567,0.0062573,2397.9,2397.8,6.5048]
[1725456588773,0.0062573,2397.9,2397.8,13.883]
[1725456589867,0.368,2398.3,2398.2,0.417]
[1725456590063,2.66874965,2398.5,2398.4,0.41696]
[1725456590464,6.24454965,2398.6,2398.4,0.41696]
[1725456590864,6.24454965,2398.6,2398.5,0.41694]
[1725456591069,6.24454965,2398.6,2398.4,0.41695]
[1725456591266,6.24454965,2398.6,2398.3,0.0062573]
[1725456591461,6.24454965,2398.6,2398.4,0.41695]
[1725456591867,2.66874965,2398.5,2398.4,0.41695]
[1725456592170,6.24454965,2398.6,2398.5,0.41694]
[1725456592365,6.24454965,2398.6,2398.4,0.41695]
[1725456592571,6.24454965,2398.6,2398.5,0.41694]
[1725456592769,6.24454965,2398.6,2398.4,0.41695]
[1725456592967,6.24454965,2398.6,2398.5,0.41694]
[1725456593167,6.26596646,2398.6,2398.5,0.41694]
[1725456593475,6.26597924,2398.6,2398.5,0.41694]
[1725456594375,10.43477924,2398.6,2398.3,0.0062573]
[1725456594673,2.68977455,2398.5,2398.4,0.41696]
[1725456594891,3.10673455,2398.5,2398.3,0.0062573]
[1725456595169,0.41696,2398.4,2398.3,0.0062573]
[1725456595379,4.58656,2398.4,2398.3,0.0062573]
[1725456595888,4.1696,2398.4,2398.3,0.4232373]
[1725456596569,2.68977455,2398.5,2398.4,0.41696]
[1725456597073,4.1696,2398.5,2398.4,0.41696]
[1725456597376,5.89757455,2398.6,2398.5,0.41694]
[1725456597573,3.2078,2398.6,2398.5,0.41694]
[1725456599281,0.0062573,2398.7,2398.6,0.41693]
[1725456599480,0.0062573,2398.7,2398.6,1.45925]
[1725456599775,0.0062573,2398.7,2398.6,2.50157]
[1725456600075,0.0062573,2398.7,2398.6,1.45925]
[1725456600373,0.0062573,2398.7,2398.6,11.62805]
[1725456600575,0.0062573,2398.7,2398.6,0.41693]
[1725456600879,0.0062573,2398.7,2398.6,4.58573]
[1725456601265,0.0062573,2398.7,2398.5,3.61]
[1725456601470,0.4231673,2398.7,2398.4,0.41696]
[1725456601673,0.3747,2398.6,2398.3,0.0062573]
[1725456601873,3.2078,2398.5,2398.3,0.0062573]
[1725456602076,4.1696,2398.5,2398.3,0.0062573]
[1725456602391,0.41694,2398.5,2398.3,0.4232273]
[1725456602587,0.41695,2398.5,2398.3,0.4232273]
[1725456602872,23.8238,2398.6,2398.3,0.0062573]
[1725456603079,23.8238,2398.6,2398.3,0.4232273]
[1725456603080,0.41695,2398.5,2398.3,0.4232273]
[1725456603279,23.8238,2398.6,2398.3,0.0062573]
[1725456603573,24.24073,2398.6,2398.3,0.4232273]
[1725456603874,24.24073,2398.6,2398.3,0.0062573]
[1725456603875,0.41696,2398.4,2398.3,0.0062573]
[1725456604272,4.58656,2398.4,2398.3,0.0062573]
[1725456604476,3.2078,2398.5,2398.4,0.41696]
[1725456604973,23.8238,2398.6,2398.3,0.0062573]
[1725456605281,23.8238,2398.6,2398.5,0.41694]
[1725456605667,22.7,2398.6,2398.5,4.02694]
[1725456605876,0.4231673,2398.7,2398.5,0.41694]
[1725456606177,0.4231673,2398.7,2398.3,4.0332273]
[1725456606178,0.41694,2398.5,2398.3,4.0332273]
[1725456606476,0.0062573,2398.7,2398.3,0.0062573]
[1725456606477,0.41696,2398.4,2398.3,0.0062573]
[1725456606681,1.15656,2398.4,2398.3,0.0062573]
[1725456606979,5.32616,2398.4,2398.3,0.0062573]
[1725456607479,1.15656,2398.4,2398.3,0.0062573]
[1725456607672,9.57637,2398.4,2398.3,0.0062573]
[1725456608278,1.45955,2398.1,2398.0,0.097]
[1725456608481,8.117,2398.4,2397.8,3.61]
[1725456608770,0.41698,2398.3,2398.1,0.417]
[1725456608982,0.41701,2398.2,2398.0,0.41702]
[1725456609180,0.41703,2398.1,2397.9,0.4232973]
[1725456610175,0.41703,2398.1,2398.0,0.41703]
[1725456610481,1.45961,2398.0,2397.9,0.0062573]
[1725456610670,1.45961,2398.0,2397.6,3.62489]
[1725456610671,0.4171,2397.6,2397.5,0.097]
[1725456610874,0.41715,2397.3,2397.2,0.097]
[1725456611072,1.04287,2397.4,2396.6,0.7756]
[1725456611073,3.2078,2397.4,2396.9,0.097]
[1725456611277,3.3048,2397.7,2397.6,0.4171]
[1725456611474,0.3836,2398.1,2398.0,0.41703]
[1725456611671,0.3623,2398.3,2398.2,0.417]
[1725456611871,0.3685573,2398.3,2398.2,0.417]
[1725456612078,0.0062573,2398.3,2398.2,0.417]
[1725456612280,0.097,2398.8,2398.7,0.41691]
[1725456612484,6.45501576,2399.5,2399.1,0.41683]
[1725456612485,0.4685,2399.3,2399.1,0.41683]
[1725456612684,3.10651455,2399.7,2399.2,4.02681]
[1725456612988,0.41679,2399.4,2399.1,3.707]
[1725456613287,3.62463,2399.2,2398.8,0.097]
[1725456613479,3.62463,2399.2,2398.8,0.0062573]
[1725456613480,6.8240573,2399.2,2398.8,0.0062573]
[1725456613779,3.2140573,2399.2,2398.8,0.0062573]
[1725456613977,0.41686,2399.0,2398.8,0.0062573]
[1725456614484,7.79347,2398.9,2398.5,0.097]
[1725456614787,0.41697,2398.4,2398.2,0.097]
[1725456614984,4.58657,2398.4,2398.0,0.41703]
[1725456615282,3.5995,2398.6,2398.2,3.61]
[1725456615487,0.3917,2398.6,2398.3,0.41698]
[1725456615679,0.3917,2398.6,2398.2,3.61]
[1725456616187,0.097,2398.8,2398.7,0.41691]
[1725456616385,0.3715,2399.1,2398.9,0.41686]
[1725456616580,0.0062573,2399.2,2399.0,0.41685]
[1725456616779,0.0062573,2399.2,2398.9,3.61]
[1725456616780,0.0062573,2399.2,2398.9,4.02686]
[1725456617279,0.0062573,2399.2,2398.8,0.41688]
[1725456617280,0.4230773,2399.2,2398.8,0.41688]
[1725456617786,0.4230773,2399.2,2398.9,0.41687]
[1725456618181,0.0062573,2399.2,2398.9,0.41687]
[1725456618577,0.0062573,2399.2,2398.9,3.61]
[1725456618879,0.0062573,2399.2,2399.1,4.02684]
[1725456619278,0.097,2399.5,2399.4,0.41679]
[1725456619593,0.51373,2399.8,2399.4,4.02678]
[1725456619790,0.41673,2399.8,2399.4,4.02678]
[1725456620085,0.41673,2399.8,2399.5,0.41677]
[1725456620289,3.62455,2399.7,2399.4,0.0062573]
[1725456620482,3.2078,2399.7,2399.4,0.4230273]
[1725456620677,3.2078,2399.7,2399.4,0.0062573]
[1725456620880,0.41677,2399.5,2399.4,0.0062573]
[1725456621085,1.4587,2399.5,2399.4,0.0062573]
[1725456621279,0.41677,2399.5,2399.4,0.0062573]
[1725456622088,4.58477,2399.5,2399.4,0.0062573]
[1725456622588,1.16146,2399.6,2399.4,0.0062573]
[1725456622788,0.0062573,2399.9,2399.5,3.61]
[1725456623085,0.41674,2399.7,2399.5,4.02676]
[1725456623284,0.41677,2399.5,2399.4,0.0062573]
[1725456623689,4.58477,2399.5,2399.4,0.0062573]
[1725456623889,5.6267,2399.5,2399.4,0.0062573]
[1725456624091,0.41684,2399.1,2399.0,0.097]
[1725456624388,1.45912,2398.8,2398.7,0.097]
[1725456624586,1.45912,2398.8,2398.2,3.2078]
[1725456624587,0.41693,2398.6,2398.3,0.41697]
[1725456624785,0.41693,2398.6,2398.3,0.41696]
[1725456625288,0.41697,2398.4,2398.2,3.2078]
[1725456625593,3.2078,2398.6,2398.2,3.2078]
[1725456625779,3.2078,2398.6,2397.9,0.097]
[1725456625780,0.417,2398.2,2397.9,0.097]
[1725456625987,0.4537,2398.6,2397.8,0.3584]
[1725456626293,0.417,2398.2,2398.0,0.41702]
[1725456626493,0.41701,2398.2,2397.9,0.41704]
[1725456626681,0.4537,2398.6,2397.8,0.3584]
[1725456626884,0.097,2398.6,2398.0,4.81]
[1725456627083,0.41693,2398.6,2398.0,4.81]
[1725456627484,0.41694,2398.5,2398.2,0.41699]
[1725456627684,0.0062573,2398.7,2397.9,3.2078]
[1725456627883,0.41699,2398.3,2398.0,0.41702]
[1725456628096,0.41695,2398.5,2398.1,0.41701]
[1725456628285,1.0485673,2398.7,2398.0,0.41702]
[1725456628593,0.41698,2398.3,2397.9,0.41704]
[1725456628781,3.2078,2398.5,2397.8,0.4554]
[1725456628987,3.2078,2398.2,2397.6,0.41709]
[1725456629188,0.41708,2397.8,2397.5,0.5141]
[1725456629488,0.41706,2397.9,2397.6,0.4171]
[1725456629684,0.41711,2397.6,2397.3,0.51414]
[1725456629887,4.25046,2397.9,2397.1,0.097]
[1725456630083,4.25046,2397.9,2397.1,0.51418]
[1725456630084,3.2078,2397.6,2397.1,0.51418]
[1725456630282,3.2078,2397.6,2396.9,4.922]
[1725456630283,0.41717,2397.2,2396.9,0.41722]
[1725456630488,0.41722,2396.9,2396.6,0.7537]
[1725456630796,0.41722,2396.9,2396.5,0.9771858]
[1725456631092,0.41722,2396.9,2396.4,0.4173]
[1725456631290,0.3601,2397.1,2396.3,3.2078]
[1725456631488,0.77729,2397.1,2396.5,0.41728]
[1725456631697,0.3601,2397.1,2396.3,3.2078]
[1725456631888,0.3601,2397.1,2396.2,0.097]
[1725456631889,0.41733,2396.3,2396.2,0.097]
[1725456632083,3.2078,2396.3,2395.9,0.55996167]
[1725456632284,3.2078,2396.3,2395.7,0.097]
[1725456632502,3.2078,2396.3,2395.8,0.41741]
[1725456632801,0.4813,2396.5,2396.0,3.62518]
[1725456632802,0.097,2396.5,2396.0,3.62518]
[1725456633091,3.2078,2396.6,2396.0,3.2078]
[1725456633295,3.2078,2396.6,2396.0,8.0178]
[1725456633501,0.097,2396.8,2396.0,5.22737]
[1725456633691,0.51424,2396.8,2395.9,0.41739]
[1725456633891,0.51424,2396.8,2396.0,3.2078]
[1725456634198,3.2078,2396.6,2395.7,3.3048]
[1725456634896,3.2078,2396.6,2396.1,0.41735]
[1725456635087,0.097,2396.8,2396.3,5.22731]
[1725456635289,0.3843,2397.0,2396.1,0.3632]
[1725456635491,0.3843,2397.0,2396.2,0.41733]
[1725456635691,0.3843,2397.0,2396.1,0.3632]
[1725456636101,0.3843,2397.0,2396.4,3.2078]
[1725456636299,0.3843,2397.0,2396.6,0.41726]
[1725456636516,0.3601,2397.1,2396.6,0.41726]
[1725456636693,0.1032573,2397.3,2397.0,3.2078]
[1725456637003,0.1032573,2397.3,2397.2,0.41717]
[1725456637004,0.0062573,2397.3,2397.2,0.41717]
[1725456637191,0.0062573,2397.3,2396.8,4.81]
[1725456637796,0.0062573,2397.3,2397.1,0.41718]
[1725456638195,0.0062573,2397.3,2396.8,4.81]
[1725456638399,0.0062573,2397.3,2397.1,0.41718]
[1725456638591,0.0062573,2397.3,2397.0,0.4172]
[1725456639394,0.0062573,2397.3,2397.2,0.41717]
[1725456639593,0.0062573,2397.3,2396.9,3.2078]
[1725456639594,0.0062573,2397.3,2397.1,0.41718]
[1725456640296,0.0062573,2397.3,2397.0,0.41719]
[1725456640609,0.0062573,2397.3,2396.8,4.81]
[1725456640908,0.0062573,2397.3,2397.2,0.41717]
[1725456641298,0.0062573,2397.3,2397.1,0.41718]
[1725456641497,0.0062573,2397.3,2397.2,0.41717]
[1725456641802,0.097,2397.7,2397.6,0.4171]
[1725456641994,0.097,2398.0,2397.9,0.41705]
[1725456642199,3.2078,2398.3,2397.9,0.41704]
[1725456642501,0.41694,2398.6,2397.9,8.0178]
[1725456642703,3.2078,2398.4,2398.0,0.0062573]
[1725456643105,0.41698,2398.3,2398.0,0.0062573]
[1725456643601,3.62477,2398.4,2398.0,0.4232873]
[1725456643808,0.0062573,2398.5,2398.4,0.41696]
[1725456644005,0.0062573,2398.5,2398.4,4.58656]
[1725456644199,0.0062573,2398.5,2398.4,11.62897]
[1725456644402,0.097,2399.1,2399.0,0.41686]
[1725456644601,0.4168,2399.4,2399.0,0.41685]
[1725456644794,0.4168,2399.4,2398.7,0.5139]
[1725456644795,0.41685,2399.1,2398.7,0.5139]
[1725456645008,3.2078,2399.4,2398.6,4.81]
[1725456645211,3.2078,2399.4,2399.2,0.41681]
[1725456645415,0.0062573,2399.5,2399.3,0.4168]
[1725456645705,0.0062573,2399.5,2399.2,4.8162573]
[1725456646206,0.4230273,2399.5,2399.2,0.0062573]
[1725456646410,0.0062573,2399.5,2399.2,0.0062573]
[1725456646606,0.4168,2399.4,2399.2,0.0062573]
[1725456646806,0.0062573,2399.5,2399.2,0.0062573]
[1725456646807,0.4168,2399.3,2399.2,0.0062573]
[1725456647010,0.4168,2399.4,2399.2,0.0062573]
[1725456647201,0.4168,2399.3,2399.2,0.0062573]
[1725456647415,0.4168,2399.4,2399.2,0.0062573]
[1725456647803,0.0062573,2399.5,2399.2,0.0062573]
[1725456648404,1.0481973,2399.5,2399.2,0.0062573]
[1725456648608,3.6246,2399.3,2399.2,0.0062573]
[1725456648908,4.66662,2399.3,2399.2,0.0062573]
[1725456649101,14.83462,2399.3,2399.2,0.0062573]
[1725456649308,7.7926,2399.3,2399.2,0.0062573]
[1725456649501,0.782,2399.4,2399.2,0.0062573]
[1725456649714,0.4168,2399.3,2399.2,0.0062573]
[1725456649913,3.6246,2399.3,2399.2,0.0062573]
[1725456650217,13.7926,2399.3,2399.2,0.0062573]
[1725456650512,3.6246,2399.3,2399.2,0.0062573]
[1725456650702,13.3758,2399.3,2398.7,0.097]
[1725456650902,13.3758,2399.3,2398.2,8.0178]
[1725456650903,0.41693,2398.6,2398.4,0.097]
[1725456651109,1.04223,2398.8,2397.9,3.3048]
[1725456651406,3.2078,2398.9,2397.9,3.3048]
[1725456651407,1.04245,2398.3,2397.9,3.2078]
[1725456651711,0.41701,2398.2,2397.9,0.0062573]
[1725456651913,0.41702,2398.1,2397.9,0.0062573]
[1725456652206,0.41703,2398.1,2397.9,0.0062573]
[1725456652409,0.417,2398.2,2397.9,0.0062573]
[1725456652712,0.417,2398.2,2397.9,0.4232973]
[1725456652905,0.0062573,2398.3,2397.9,0.4232973]
[1725456653114,0.0062573,2398.3,2398.2,0.417]
[1725456653608,0.0062573,2398.3,2398.1,0.417]
[1725456653911,0.0062573,2398.3,2397.9,0.0062573]
[1725456654306,0.0062573,2398.3,2398.1,0.417]
[1725456654511,0.0062573,2398.3,2398.2,0.417]
[1725456654710,0.0062573,2398.3,2398.2,4.1696]
[1725456655106,0.4232373,2398.3,2397.9,0.0062573]
[1725456655315,0.41703,2398.0,2397.9,0.0062573]
[1725456655610,0.0062573,2398.3,2397.9,0.0062573]
[1725456655808,0.41703,2398.0,2397.9,0.0062573]
[1725456656505,1.0487473,2398.3,2397.9,0.0062573]
[1725456656506,0.0062573,2398.3,2397.9,0.0062573]
[1725456656811,0.417,2398.2,2397.9,0.4232973]
[1725456657208,0.0062573,2398.3,2397.9,0.0062573]
[1725456657408,0.4232373,2398.3,2398.0,0.41702]
[1725456657613,0.417,2398.2,2397.9,0.4232973]
[1725456657818,0.4232473,2398.3,2398.0,0.41703]
[1725456658013,0.0062573,2398.3,2398.0,0.41703]
[1725456658315,0.0062573,2398.3,2397.9,0.0062573]
[1725456658508,1.45986,2397.6,2397.5,0.097]
[1725456658708,1.45986,2397.6,2396.4,3.2078]
[1725456658709,8.0178,2397.6,2396.4,3.2078]
[1725456658914,8.0178,2397.6,2396.3,0.9428]
[1725456658915,3.5824,2397.5,2397.0,0.4172]
[1725456659111,0.41714,2397.4,2397.0,0.4172]
[1725456659507,3.5824,2397.5,2396.8,5.02055837]
[1725456659705,3.5824,2397.5,2397.2,0.41716]
[1725456659916,3.5824,2397.5,2397.1,0.41718]
[1725456660312,3.99952,2397.5,2396.8,5.02055837]
[1725456660519,3.99952,2397.5,2397.1,0.41718]
[1725456660520,3.5824,2397.5,2397.1,0.41718]
[1725456660819,0.3746,2397.5,2396.8,8.22835837]
[1725456661012,0.0062573,2398.3,2397.4,8.0178]
[1725456661209,3.2078,2398.2,2397.4,3.2078]
[1725456661512,0.0062573,2398.3,2397.2,0.41717]
[1725456661513,0.4171,2397.7,2397.2,0.41717]
[1725456661712,0.41704,2398.0,2397.5,0.41711]
[1725456661916,0.79142,2398.1,2397.4,3.2078]
[1725456662111,0.0062573,2398.3,2397.4,8.0178]
[1725456662426,0.0062573,2398.3,2397.7,0.41708]
[1725456662623,0.0062573,2398.3,2397.7,3.2078]
[1725456662915,0.41702,2398.1,2397.7,3.2078]
[1725456663117,0.41702,2398.1,2397.7,3.62487]
[1725456663421,0.4232473,2398.3,2397.7,3.2078]
[1725456663721,0.0062573,2398.3,2397.8,0.41706]
[1725456663908,0.4232473,2398.3,2397.9,0.41705]
[1725456664116,0.4232473,2398.3,2397.7,3.2078]
[1725456664314,0.0062573,2398.3,2397.9,0.41704]
[1725456664513,0.0062573,2398.3,2398.0,3.2078]
[1725456664714,0.0062573,2398.3,2398.2,0.417]
[1725456665108,0.0062573,2398.3,2398.2,4.5866]
[1725456665716,0.0062573,2398.3,2398.0,3.62481]
[1725456665914,0.0062573,2398.3,2398.1,0.41701]
[1725456666118,0.0062573,2398.3,2398.0,3.2078]
[1725456666119,0.0062573,2398.3,2398.2,0.417]
[1725456666623,0.0062573,2398.3,2398.1,0.417]
[1725456666919,0.0062573,2398.3,2398.0,3.2078]
[1725456667117,0.0062573,2398.3,2397.6,3.2078]
[1725456667512,0.4232373,2398.3,2397.6,3.2078]
[1725456667715,0.4232473,2398.3,2397.9,0.41704]
[1725456667928,0.417,2398.2,2397.9,0.41704]
[1725456668126,0.0062573,2398.3,2397.7,0.41708]
[1725456668621,0.417,2398.2,2397.6,3.2078]
[1725456668925,0.0062573,2398.3,2398.0,0.41702]
[1725456669117,0.4232373,2398.3,2398.0,0.41702]
[1725456669318,0.0062573,2398.3,2397.9,3.2078]
[1725456669519,0.0062573,2398.3,2398.2,0.417]
[1725456670123,0.0062573,2398.3,2398.0,0.78911]
[1725456670319,0.0062573,2398.3,2398.1,0.417]
[1725456670825,0.0062573,2398.3,2398.2,0.417]
[1725456671121,0.0062573,2398.3,2398.2,4.5866]
[1725456671324,0.0062573,2398.3,2398.2,10.9747]
[1725456671529,0.097,2398.9,2398.8,0.41689]
[1725456671729,0.097,2399.5,2399.4,0.41679]
[1725456672022,0.3891,2400.0,2399.4,8.978]
[1725456672222,0.4167,2399.9,2399.5,3.2078]
[1725456672416,0.41679,2399.5,2398.9,0.3607]
[1725456672619,5.8518,2399.8,2398.9,0.3607]
[1725456672620,0.0062573,2399.4,2399.3,0.4168]
[1725456672824,0.0062573,2399.4,2399.2,0.41681]
[1725456673228,0.0062573,2399.4,2399.3,0.4168]
[1725456673418,0.0062573,2399.4,2399.0,3.2140573]
[1725456673419,0.0062573,2399.4,2399.1,0.41683]
[1725456673826,0.0062573,2399.4,2399.2,0.41682]
[1725456674128,0.0062573,2399.4,2399.3,3.6246]
[1725456674330,0.097,2399.8,2399.7,0.41673]
[1725456674519,0.097,2400.2,2400.1,0.41667]
[1725456674826,0.097,2400.2,2399.7,18.375]
[1725456674827,0.79056,2400.7,2399.8,3.5815]
[1725456675133,0.374,2400.7,2399.8,3.5815]
[1725456675434,0.0062573,2400.5,2399.8,3.5815]
[1725456675627,3.2078,2400.3,2399.4,3.2078]
[1725456675820,3.2078,2400.3,2399.4,3.62458]
[1725456676021,0.3596,2400.2,2399.4,3.2078]
[1725456676324,0.41669,2400.0,2399.4,0.41678]
[1725456676720,0.3596,2400.2,2399.4,3.2078]
[1725456676926,0.77625,2400.2,2399.6,0.41674]
[1725456677128,0.77625,2400.2,2399.7,0.41673]
[1725456677720,0.77625,2400.2,2399.4,3.5962]
[1725456677721,0.77626,2400.2,2399.6,0.41674]
[1725456678035,0.41668,2400.1,2399.6,0.41674]
[1725456678336,0.41667,2400.1,2399.6,0.41674]
[1725456678534,0.77626,2400.2,2399.7,0.41673]
[1725456678735,3.2078,2400.3,2399.4,3.5962]
[1725456678936,0.41664,2400.3,2399.8,0.41671]
[1725456679229,0.41662,2400.4,2399.9,0.41669]
[1725456679421,0.4228673,2400.5,2400.0,0.41667]
[1725456679621,0.4228673,2400.5,2400.0,3.2078]
[1725456679622,0.0062573,2400.5,2400.0,3.2078]
[1725456680228,0.0062573,2400.5,2400.3,0.41663]
[1725456680431,0.0062573,2400.5,2400.4,0.41661]
[1725456680830,0.0062573,2400.5,2400.4,4.58221]
[1725456681530,0.0062573,2400.5,2400.4,0.41661]
[1725456681729,0.0062573,2400.5,2400.4,10.58221]
[1725456681925,0.0062573,2400.5,2400.4,4.58221]
[1725456682126,0.0062573,2400.5,2400.4,4.1656]
[1725456682335,0.0062573,2400.5,2400.2,0.0062573]
[1725456682734,0.0062573,2400.5,2400.4,0.41661]
[1725456683640,0.0062573,2400.5,2400.4,4.58221]
[1725456684238,0.0062573,2400.5,2400.4,10.58221]
[1725456685230,0.0062573,2400.5,2400.4,11.62375]
[1725456685534,0.0062573,2400.5,2400.4,0.41661]
[1725456686830,0.0062573,2400.5,2400.4,4.58221]
[1725456687235,0.4228573,2400.5,2400.2,0.4228973]
[1725456687436,0.0062573,2400.5,2400.2,0.0062573]
[1725456687741,0.0062573,2400.5,2400.4,0.41661]
[1725456689127,0.0062573,2400.5,2400.4,10.58221]
[1725456689332,0.0062573,2400.5,2400.4,11.62375]
[1725456689840,0.0062573,2400.5,2400.4,10.58221]
[1725456690434,0.0062573,2400.5,2400.4,16.98585]
[1725456690632,0.097,2401.0,2400.9,0.41653]
[1725456690832,0.41645,2401.4,2401.1,0.41649]
[1725456691139,0.41645,2401.4,2400.8,3.2078]
[1725456691140,0.41642,2401.5,2400.8,3.41287584]
[1725456691333,3.62421,2401.6,2401.3,0.41645]
[1725456691532,1.50418,2401.8,2400.8,3.41287584]
[1725456691838,0.097,2401.9,2401.6,0.4164]
[1725456691839,0.0062573,2401.7,2401.6,0.4164]
[1725456692635,0.0062573,2401.7,2401.4,0.4226873]
[1725456692834,0.0062573,2401.7,2401.5,0.41642]
[1725456693036,0.0062573,2401.7,2401.4,0.0062573]
[1725456693037,0.0062573,2401.7,2401.6,0.4164]
[1725456693433,0.0062573,2401.7,2401.4,0.0062573]
[1725456693836,0.0062573,2401.7,2401.5,0.41641]
[1725456694034,0.0062573,2401.7,2401.5,4.164]
[1725456694239,0.0062573,2401.7,2401.6,4.5804]
[1725456695641,0.0062573,2401.7,2401.6,10.5804]
[1725456695940,0.097,2402.4,2401.6,16.36732]
[1725456696133,0.3561,2402.5,2402.2,0.41629]
[1725456696441,0.3561,2402.5,2402.0,0.41633]
[1725456696442,0.41627,2402.4,2402.0,0.41633]
[1725456696640,0.41627,2402.4,2401.7,8.0078]
[1725456696641,0.41628,2402.4,2401.7,8.0078]
[1725456696839,0.42252389,2402.3,2401.7,8.0078]
[1725456697038,0.00624389,2402.3,2401.7,8.0078]
[1725456697344,0.00624389,2402.3,2402.0,0.41633]
[1725456697543,0.00624389,2402.3,2401.7,8.0078]
[1725456697840,0.42252389,2402.3,2402.0,0.41633]